[Event "Swedish Championship 2022"]
[Site "Uppsala"]
[Date "2022.07.02"]
[Round "1.2"]
[White "Blomqvist, Erik"]
[Black "Seo, Jung Min"]
[Result "1/2-1/2"]
[ECO "C28"]
[WhiteElo "2521"]
[BlackElo "2492"]
[Annotator "TA"]
[PlyCount "42"]
[EventDate "2022.07.01"]
[EventType "tourn"]
[EventCountry "SWE"]
[SourceTitle "playchess.com"]
[Source "ChessBase"]
[SourceQuality "1"]
[TimeControl "40/5400+30:1800+30"]

{[%evp 9,42,-8,8,7,9,11,16,8,10,16,6,0,21,0,16,7,0,0,0,0,0,0,0,0,0,0,0,0,0,0,0,0,10,0,0]} 1. e4 {[%emt 0:00:11]} e5 {[%emt 0:00:04]} 2. Nc3 {[%emt 0:00:19]} Nc6 {[%emt 0:00:07]} 3. Bc4 {[%emt 0:00:27]} Nf6 {[%emt 0:01:21]} 4. d3 {[%emt 0:00:25][%cal Bd2d3,Bd3c4][%mdl 32]} Na5 {[%emt 0:02:55]} 5. Qf3 {[%emt 0:00:53]} Nxc4 {[%emt 0:00:22] The position is equal.} 6. dxc4 {[%emt 0:00:08] C28: Vienna Game: 2...Nf6 3 Bc4 Nc6.} Be7 {[%emt 0:04:38]} 7. Nge2 {[%emt 0:01:05]} d6 {[%emt 0:00:25]} 8. h3 {[%emt 0:00:43]} Be6 {[%emt 0:01:30]} 9. b3 {[%emt 0:00:13]} O-O {[%emt 0:01:58]} 10. O-O {[%emt 0:00:38]} c6 {[%emt 0:03:11]} 11. Rd1 {[%emt 0:00:28]} Qa5 {[%emt 0:01:03]} 12. a4 {[%emt 0:01:18]} Rad8 {[%emt 0:00:24]} 13. Bd2 {[%emt 0:15:58][%cal Oc3d5]} Qc7 {[%emt 0:03:10] [#]} 14. Be3 $146 {[%emt 0:00:14]} ({Predecessor:} 14. Bg5 Kh8 15. Ng3 Ng8 16. Bxe7 Nxe7 17. Rd2 f6 18. Rad1 Nc8 19. Qe3 Rd7 20. Rd3 {0-1 (89) Khamroev,R (2206)-Filippov,A (2558) Tashkent 2009}) 14... Qa5 {[%emt 0:01:25]} 15. Bg5 {[%emt 0:08:21]} h6 {[%emt 0:04:41]} 16. Bd2 $36 {[%emt 0:00:20][%cal Oc3d5][%mdl 2048] [#] Black must now prevent Nd5! White has good play.} Qc7 {[%emt 0:00:06]} 17. Be3 {[%emt 0:18:25]} Qa5 {[%emt 0:00:38]} 18. Bd2 {[%emt 0:04:43][%cal Oc3d5] And now Nd5! would win.} Qc7 {[%emt 0:00:14]} 19. Be3 {[%emt 0:00:08]} Qa5 {[%emt 0:00:04]} 20. Bd2 {[%emt 0:00:06][%cal Oc3d5] [#] Strongly threatening Nd5!} Qc7 {[%emt 0:00:03]} 21. Be3 {[%emt 0:00:04]} Qa5 {[%emt 0:00:15] An uneventful encounter.  Weighted Error Value: White=0.03 (flawless) /Black=0.03 (flawless)} 1/2-1/2

[Event "Swedish Championship 2022"]
[Site "Uppsala"]
[Date "2022.07.02"]
[Round "1.3"]
[White "Jogstad, Martin"]
[Black "Carlsson, Ludvig"]
[Result "1/2-1/2"]
[ECO "D33"]
[WhiteElo "2384"]
[BlackElo "2399"]
[Annotator "TA"]
[PlyCount "120"]
[EventDate "2022.07.01"]
[EventType "tourn"]
[EventCountry "SWE"]
[SourceTitle "playchess.com"]
[Source "ChessBase"]
[SourceQuality "1"]
[TimeControl "40/5400+30:1800+30"]

{[%evp 16,120,45,37,39,39,34,47,50,54,56,59,61,53,49,50,47,37,36,37,40,27,47,50,41,46,67,84,65,81,69,78,139,138,162,161,136,139,145,33,63,70,33,57,206,222,206,207,207,210,327,285,421,413,398,395,395,352,270,0,0,0,0,0,0,0,0,0,0,0,0,0,0,0,0,0,0,0,0,0,0,0,0,0,0,0,0,0,0,0,0,0,0,0,0,0,0,0,0,0,0,0,0,0,0,0,0]} 1. d4 {[%emt 0:00:06]} d5 {[%emt 0:00:19]} 2. c4 {[%emt 0:00:06]} e6 {[%emt 0:00:12]} 3. Nc3 {[%emt 0:00:06]} c5 {[%emt 0:01:08]} 4. cxd5 {[%emt 0:00:21]} exd5 {[%emt 0:00:48]} 5. Nf3 {[%emt 0:00:06]} Nc6 {[%emt 0:00:08]} 6. g3 {[%emt 0:00:05]} Nf6 {[%emt 0:00:08]} 7. Bg2 {[%emt 0:00:04]} cxd4 {[%emt 0:00:08]} 8. Nxd4 {[%emt 0:00:05]} Bc5 {[%emt 0:00:07]} 9. Nb3 {[%emt 0:00:14][%csl LRc5,LRd5]} Bb6 {[%emt 0:00:10] D33: Tarrasch Defence: 6 g3 sidelines.} 10. O-O {[%emt 0:00:34]} (10. Bxd5 Nb4 11. Bf3 Qxd1+ 12. Kxd1 Ng4 13. Bxg4 Bxg4 $11) 10... d4 {[%emt 0:00:15]} 11. Na4 {[%emt 0:00:15]} O-O {[%emt 0:00:13] White is slightly better.} 12. Bg5 {[%emt 0:00:09]} Re8 {[%emt 0:00:43]} 13. Re1 {[%emt 0:00:07]} h6 {[%emt 0:00:11]} 14. Bxf6 {[%emt 0:00:09] is the new trend.} Qxf6 {[%emt 0:00:10]} 15. Nxb6 {[%emt 0:00:16]} axb6 {[%emt 0:00:08]} 16. Bxc6 {[%emt 0:00:29]} bxc6 {[%emt 0:00:06]} 17. Qxd4 {[%emt 0:00:08]} Qd8 {[%emt 0:00:13]} 18. Qc3 {[%emt 0:00:17]} c5 {[%emt 0:02:38]} 19. Rad1 {[%emt 0:00:24]} Qc7 {[%emt 0:03:50]} 20. a3 {[%emt 0:00:09]} Bb7 {[%emt 0:01:20] [#]} 21. Nd4 $146 {[%emt 0:00:10]} ({Predecessor:} 21. Nd2 Re6 22. f3 Rae8 23. Kf2 f5 24. Qd3 Qc8 25. Nc4 Ba6 26. b3 Kh8 27. Rd2 {1-0 (58) Donchenko,A (2636)-Dardha,D (2541) Kragero 2022}) 21... Qd7 {[%emt 0:11:49] Inhibits Nf5. Hoping for ...Rad8.} 22. Nc2 $1 {[%emt 0:08:48]} ({Reject} 22. Nf3 Qc6 $11) 22... Qc6 {[%emt 0:10:54][%csl Gb7][%cal Rc6h1]} 23. f3 {[%emt 0:00:28]} h5 {[%emt 0:12:16]} (23... Rad8 $142) 24. e4 $16 {[%emt 0:04:36]} f5 {[%emt 0:07:00][%cal Rf5e4]} 25. Ne3 $40 {[%emt 0:12:01][%mdl 128] White goes for the king.} fxe4 {[%emt 0:01:11]} 26. Nf5 {[%emt 0:04:31][%csl Gf5][%cal Rc3g7]} Qc7 {[%emt 0:02:35]} 27. Nxg7 {[%emt 0:12:17] White is more active.} Qxg7 $14 {[%emt 0:03:47]} 28. Qxg7+ {[%emt 0:00:07][%mdl 64] Remove Defender} Kxg7 {[%emt 0:00:03]} 29. Rd7+ {[%emt 0:00:07]} Kg8 {[%emt 0:07:47]} (29... Kf8 $1 $14 30. Rxb7 exf3 31. Rxe8+ Rxe8) 30. Rxb7 $18 {[%emt 0:00:11]} exf3 {[%emt 0:00:09]} 31. Rxe8+ {[%emt 0:11:30]} Rxe8 {[%emt 0:00:03]} 32. Rxb6 {[%emt 0:00:21][%mdl 4096] Endgame KR-KR} Re2 {[%emt 0:00:23] [#]} (32... Kf7 $142 33. Kf2 Re2+ 34. Kxf3 Rxh2) 33. a4 $1 {[%emt 0:24:18][%cal Ba3a4,Ba4a5][%mdl 32] a5 is the strong threat.} Rg2+ {[%emt 0:00:33]} (33... Re1+ $142 34. Kf2 Ra1) 34. Kf1 {[%emt 0:00:15]} Rxh2 {[%emt 0:00:13]} 35. a5 {[%emt 0:08:15] aiming for a6.} h4 {[%emt 0:00:49]} 36. gxh4 {[%emt 0:02:07]} Rxh4 {[%emt 0:00:12] [#]} 37. Rb5 $2 {[%emt 0:07:05]} (37. Rb3 $1 $18 {And now a6 would win.} c4 38. Ra3 (38. Rxf3 Rh2 $16)) 37... Kf7 $11 {[%emt 0:01:27] The position is equal.} 38. Kf2 {[%emt 0:03:03]} Ke6 {[%emt 0:00:43]} 39. Kxf3 {[%emt 0:02:45]} Kd5 {[%emt 0:01:37]} 40. Ke3 {[%emt 0:01:43]} Ra4 {[%emt 0:00:25]} 41. b3 {[%emt 0:03:24]} Ra1 {[%emt 0:00:04]} 42. Kd3 {[%emt 0:01:34]} Kc6 {[%emt 0:01:32]} 43. Rb6+ {[%emt 0:00:59]} Kc7 {[%emt 0:00:02]} 44. Ra6 {[%emt 0:00:24]} Kb7 {[%emt 0:00:10]} 45. Rb6+ {[%emt 0:00:08]} Kc7 {[%emt 0:00:06]} 46. Kc4 {[%emt 0:00:45]} Rxa5 {[%emt 0:00:07]} 47. Rh6 {[%emt 0:01:23]} Kb7 {[%emt 0:00:22]} 48. Rh7+ {[%emt 0:00:18]} Kb6 {[%emt 0:00:09]} 49. Rh8 {[%emt 0:04:10]} Kb7 {[%emt 0:02:28]} 50. Rg8 {[%emt 0:00:16]} Ra3 {[%emt 0:00:42]} 51. Rg3 {[%emt 0:00:27]} Kb6 {[%emt 0:00:17]} 52. Rf3 {[%emt 0:00:15]} Kc6 {[%emt 0:00:07]} 53. Rf5 {[%emt 0:01:14]} Kb6 {[%emt 0:00:15]} 54. Rg5 {[%emt 0:00:13]} Ra5 {[%emt 0:00:10]} 55. Rd5 {[%emt 0:00:40]} Ra3 {[%emt 0:00:08]} 56. Rd8 {[%emt 0:00:29]} Ra5 {[%emt 0:00:08]} 57. Rb8+ {[%emt 0:00:09]} Kc7 {[%emt 0:00:19]} 58. Rb5 {[%emt 0:00:07]} Rxb5 {[%emt 0:00:09]} 59. Kxb5 {[%emt 0:00:06]} Kd6 {[%emt 0:00:12]} 60. b4 {[%emt 0:00:35]} cxb4 {[%emt 0:00:06] Black escapes into a draw.  Weighted Error Value: White=0.12 (very precise) /Black=0.13 (very precise)} 1/2-1/2

[Event "Swedish Championship 2022"]
[Site "Uppsala"]
[Date "2022.07.02"]
[Round "1.4"]
[White "Hillarp Persson, Tiger"]
[Black "Hector, Jonny"]
[Result "1/2-1/2"]
[ECO "D02"]
[WhiteElo "2516"]
[BlackElo "2441"]
[Annotator "TA"]
[PlyCount "143"]
[EventDate "2022.07.01"]
[EventType "tourn"]
[EventCountry "SWE"]
[SourceTitle "playchess.com"]
[Source "ChessBase"]
[SourceQuality "1"]
[TimeControl "40/5400+30:1800+30"]

{[%evp 9,143,29,18,28,22,26,29,18,26,18,26,12,41,27,27,24,27,34,41,27,60,51,62,48,118,74,59,61,91,99,101,55,61,60,64,56,100,86,96,26,91,29,69,0,0,0,0,0,0,0,0,0,0,0,0,-30,0,0,0,0,0,0,0,0,0,0,0,0,0,0,0,0,0,0,0,0,8,8,22,21,36,24,39,34,91,22,26,23,23,9,9,9,92,132,88,90,97,125,110,100,104,104,141,28,28,28,21,0,28,12,15,16,88,88,5073,20,24,28,40,8,12,8,8,8,8,8,59,20,36,8,8,8,8,8,19,8]} 1. Nf3 {[%emt 0:00:05]} d5 {[%emt 0:00:11]} 2. g3 {[%emt 0:00:06]} Nc6 {[%emt 0:00:25]} 3. d4 {[%emt 0:00:16]} Bf5 {[%emt 0:00:17]} 4. Bg2 {[%emt 0:00:12]} Nb4 {[%emt 0:00:37]} 5. Na3 {[%emt 0:00:33]} e6 {[%emt 0:01:00]} 6. c3 {[%emt 0:02:12] D02: 1 d4 d5 2 Nf3 sidelines, including 2...Nf6 3 g3 and 2...Nf6 3 Bf4.} Nc6 {[%emt 0:00:21]} 7. Qb3 {[%emt 0:00:14]} Bxa3 {[%emt 0:02:29]} 8. Qxa3 {[%emt 0:00:17] White has an edge.} Be4 {[%emt 0:00:32]} 9. O-O {[%emt 0:04:29]} Nge7 {[%emt 0:01:45]} 10. Re1 {[%emt 0:01:42]} O-O {[%emt 0:07:13] [#]} 11. Qb3 $146 {[%emt 0:11:14]} ({Predecessor:} 11. Bf1 Bxf3 12. exf3 a6 13. Qb3 b5 14. a4 Na5 15. Qc2 c6 16. Bd3 h6 17. b3 {1-0 (54) Vastrukhin,O (2401)-Meskovs,N (2585) Chess.com INT 2020}) 11... a5 {[%emt 0:04:19]} 12. a4 {[%emt 0:01:17]} (12. Qxb7 $2 Rb8 13. Qxb8 (13. Qa6 $2 Rb6 $19) 13... Qxb8 $19) 12... Re8 {[%emt 0:12:27]} 13. Bf1 {[%emt 0:14:23]} (13. Qxb7 $2 Rb8 14. Qa6 Rb6 $19) 13... h6 {[%emt 0:17:41]} 14. Bf4 {[%emt 0:22:01]} Ra7 {[%emt 0:14:22]} 15. Nd2 {[%emt 0:06:31]} Bh7 {[%emt 0:01:34]} 16. e4 {[%emt 0:00:10]} g5 {[%emt 0:02:58]} (16... dxe4 $14 17. Nxe4 Nd5) 17. exd5 {[%emt 0:00:25]} exd5 {[%emt 0:05:13]} 18. Be5 {[%emt 0:09:46]} Qd7 {[%emt 0:05:04]} 19. Bg2 {[%emt 0:07:45]} Raa8 {[%emt 0:03:57]} 20. Bf6 {[%emt 0:07:41]} (20. Qxb7 Nxe5 21. Rxe5 Reb8 22. Rxe7 Qxe7 23. Qxd5 Kg7 $11) (20. f4 $1 $16) 20... Qd6 $14 {[%emt 0:00:35]} 21. Bxe7 {[%emt 0:00:06]} Nxe7 {[%emt 0:00:15]} 22. Re5 {[%emt 0:00:24]} (22. Qxb7 $2 Reb8 23. Nc4 Qd8 24. Bxd5 Rxb7 25. Bxb7 Ra7 $19) 22... c6 {[%emt 0:02:04]} 23. Rae1 {[%emt 0:00:38]} (23. Qxb7 $6 Rab8 24. Qa7 Rxb2 $11) 23... Qd7 {[%emt 0:02:13]} 24. Nf1 {[%emt 0:02:04]} (24. c4 $1 $16) 24... Kg7 {[%emt 0:03:09] [#]} (24... Bf5 $11) 25. h3 {[%emt 0:02:25]} (25. Bh3 $1 $16 {[%cal Rh3d7]} f5 (25... Qxh3 26. Rxe7) 26. f3) 25... Bf5 {[%emt 0:02:41][%cal Bh7f5,Bf5e6,Be6g4][%mdl 32]} 26. Kh2 {[%emt 0:01:25]} ({White should try} 26. g4 $1 $14 Bg6 27. Ng3) 26... Be6 $11 {[%emt 0:01:10]} 27. Qd1 {[%emt 0:00:07]} Ng6 {[%emt 0:01:24]} 28. R5e3 {[%emt 0:00:25]} f5 {[%emt 0:00:29][%cal Bf7f5,Bf5f4][%mdl 32]} 29. Nd2 {[%emt 0:01:58]} f4 {[%emt 0:01:28]} 30. R3e2 {[%emt 0:00:10]} g4 {[%emt 0:02:41]} 31. hxg4 {[%emt 0:02:03]} Bxg4 {[%emt 0:01:55]} 32. Rxe8 {[%emt 0:01:04]} (32. Bf3 $5 {[%cal Rf3g4]} Rxe2 33. Qxe2 $11) 32... fxg3+ {[%emt 0:00:34]} 33. fxg3 {[%emt 0:00:10]} Rxe8 {[%emt 0:00:16]} 34. Bf3 {[%emt 0:01:15]} Rxe1 {[%emt 0:02:16]} 35. Qxe1 {[%emt 0:00:07]} Bxf3 {[%emt 0:00:13]} 36. Nxf3 {[%emt 0:00:07][%mdl 4096] Endgame KQN-KQN} Qf5 {[%emt 0:00:38]} 37. Qe2 {[%emt 0:00:36]} Kf7 {[%emt 0:00:44]} 38. Kg2 {[%emt 0:00:42]} Kf8 {[%emt 0:01:18]} 39. Ne1 {[%emt 0:01:10]} Kg7 {[%emt 0:00:32]} 40. Nd3 {[%emt 0:01:13]} h5 {[%emt 0:00:19]} 41. Qf3 {[%emt 0:05:03]} Qg5 {[%emt 0:02:11]} 42. Kf2 {[%emt 0:00:17]} h4 {[%emt 0:03:32]} 43. gxh4 {[%emt 0:00:45]} Qxh4+ {[%emt 0:00:12]} 44. Ke2 {[%emt 0:02:11]} b6 {[%emt 0:05:54]} 45. Kd2 {[%emt 0:01:58]} Qh2+ {[%emt 0:01:11]} 46. Kc1 {[%emt 0:00:16]} Qd6 {[%emt 0:00:33]} (46... Qh4 $14) 47. Kb1 {[%emt 0:06:18]} ({Better is} 47. b4 $16) 47... c5 {[%emt 0:01:03]} 48. dxc5 {[%emt 0:00:50]} bxc5 {[%emt 0:00:03]} 49. Qe3 {[%emt 0:00:17]} d4 {[%emt 0:07:53]} 50. cxd4 {[%emt 0:00:06]} cxd4 {[%emt 0:00:04]} (50... Qxd4 $11 {keeps the balance.} 51. Qxd4+ (51. Qg3 Qxa4 52. Qc7+ Kh6 $14) 51... cxd4) 51. Qg5 $16 {[%emt 0:00:52]} Qc7 {[%emt 0:05:23]} 52. Qd5 {[%emt 0:00:58]} Qb6 {[%emt 0:00:05]} 53. Nc5 {[%emt 0:02:09] Strongly threatening Qd7+.} Qb4 {[%emt 0:01:24]} 54. Ne6+ {[%emt 0:05:06]} Kf6 {[%emt 0:01:47]} 55. Nxd4 {[%emt 0:00:05] White threatens Qf5+ and mate.} Qxa4 {[%emt 0:02:56] [#]} 56. Qf5+ {[%emt 0:03:48]} (56. b3 $1 $16 {White wants to mate with Qe6+.} Qe8 57. Qf5+ (57. Qxa5 Qe4+ 58. Nc2 Nf4 $14) 57... Ke7 58. Qxa5) 56... Ke7 $11 {[%emt 0:00:02]} 57. Qe4+ {[%emt 0:02:06]} Kf6 {[%emt 0:01:47]} 58. Qf5+ {[%emt 0:00:59]} Ke7 $1 {[%emt 0:00:02]} 59. Qe6+ {[%emt 0:01:25]} Kd8 {[%emt 0:00:01]} 60. Qd5+ {[%emt 0:02:27]} Ke7 {[%emt 0:02:15]} (60... Ke8 $11 {remains equal.}) 61. b3 $16 {[%emt 0:01:04] White is more active.} Qe8 $2 {[%emt 0:00:50][%mdl 8192] [#]} (61... Qd7 $16 62. Nf5+ Ke8 63. Qxa5 Ne7) 62. Qxa5 $2 {[%emt 0:00:25]} (62. Qe6+ $1 $18 Kf8 63. Qf6+ Kg8 64. Ne6) 62... Qd7 $11 {[%emt 0:01:12]} 63. Qc5+ {[%emt 0:00:19]} Kf6 {[%emt 0:00:16]} 64. Kc2 {[%emt 0:00:29]} Ne5 {[%emt 0:00:31]} 65. Qc3 {[%emt 0:01:14]} Qh7+ {[%emt 0:00:26]} 66. Kb2 {[%emt 0:01:15]} Nd3+ {[%emt 0:00:45]} 67. Kb1 {[%emt 0:00:20] Black must now prevent Nf3+.} Kg5 {[%emt 0:00:54]} ({Resist} 67... Qh1+ 68. Kc2 (68. Ka2 Qa8+ 69. Kb1 Qe4 $14) 68... Ne5 69. Qe3 Qg2+ 70. Kc3 $16) ({Black should play} 67... Qe4 $11) 68. Qd2+ {[%emt 0:00:27]} Kg4 {[%emt 0:00:49]} 69. Qg2+ {[%emt 0:00:53]} Kf4 {[%emt 0:00:07] ( -> ...Ne1+). The position is equal.} 70. Qf3+ {[%emt 0:00:35]} Ke5 {[%emt 0:00:30]} 71. Nc2 {[%emt 0:00:24]} Qe4 {[%emt 0:00:49]} 72. Qxe4+ {[%emt 0:00:53] Weighted Error Value: White=0.15 (very precise) /Black=0.14 (very precise)} 1/2-1/2

[Event "Swedish Championship 2022"]
[Site "Uppsala"]
[Date "2022.07.02"]
[Round "1.5"]
[White "Smith, Axel"]
[Black "Johansson, Linus"]
[Result "1/2-1/2"]
[ECO "D36"]
[WhiteElo "2417"]
[BlackElo "2468"]
[Annotator "TA"]
[PlyCount "169"]
[EventDate "2022.07.01"]
[EventType "tourn"]
[EventCountry "SWE"]
[SourceTitle "playchess.com"]
[Source "ChessBase"]
[SourceQuality "1"]
[TimeControl "40/5400+30:1800+30"]

{[%evp 25,168,14,28,10,27,21,29,26,27,39,32,23,27,20,71,37,49,28,31,0,0,0,0,0,18,5,15,12,9,5,11,18,13,9,26,0,0,0,0,0,0,0,0,0,0,1,7,0,0,0,0,0,10,0,3,0,16,16,16,0,17,0,0,0,0,0,0,0,0,0,0,0,0,0,0,0,0,0,0,0,0,0,0,0,0,0,0,0,0,0,0,0,0,0,0,0,0,0,0,0,0,0,0,0,0,0,0,0,0,0,0,0,0,0,0,0,0,0,0,0,0,0,0,0,0,0,0,0,0,0,0,0,0,0,0,0,0,0,0,0,0,0,0,0,0]} 1. c4 {[%emt 0:00:02]} e6 {[%emt 0:00:18]} 2. Nc3 {[%emt 0:01:04]} d5 {[%emt 0:00:05]} 3. d4 {[%emt 0:00:17]} Nf6 {[%emt 0:00:09]} 4. cxd5 {[%emt 0:00:48]} exd5 {[%emt 0:00:07]} 5. Bg5 {[%emt 0:00:05]} c6 {[%emt 0:00:06]} 6. e3 {[%emt 0:01:28]} Be7 {[%emt 0:00:11]} 7. Bd3 {[%emt 0:00:24]} Nbd7 {[%emt 0:00:58]} 8. Qc2 {[%emt 0:01:06]} Nh5 {[%emt 0:00:18]} 9. Bxe7 {[%emt 0:00:23]} Qxe7 {[%emt 0:00:01]} 10. Nge2 {[%emt 0:01:09]} Nb6 {[%emt 0:00:23]} 11. O-O {[%emt 0:03:32]} g6 {[%emt 0:00:34]} 12. Rab1 {[%emt 0:01:25] is the legacy move (12.Rae1).} O-O {[%emt 0:07:22]} 13. b4 {[%emt 0:00:55]} a6 {[%emt 0:03:09]} 14. a4 {[%emt 0:00:05] D36: Queen's Gambit Declined: Exchange Variation: Main line (5 Bg5 c6 6 Qc2).} Ng7 {[%emt 0:00:25]} 15. b5 {[%emt 0:05:57]} axb5 {[%emt 0:02:32]} 16. axb5 {[%emt 0:00:02] White has an edge.} c5 {[%emt 0:00:17]} 17. dxc5 {[%emt 0:00:31]} Qxc5 {[%emt 0:00:07] [#]} 18. Rfc1 $146 {[%emt 0:13:43]} ({Predecessor:} 18. Nd4 Bd7 19. Rfc1 Ne6 20. Nxe6 Bxe6 21. Qd1 Rfc8 22. Ne2 Qa3 23. Nf4 Rxc1 24. Rxc1 {½-½ (30) Schmelz,T (2488)-Zajontz,R (2497) GER email 2018}) 18... Ne6 {[%emt 0:06:08]} 19. Qd2 {[%emt 0:07:45][%cal Oc3a4]} Qe7 {[%emt 0:09:08]} (19... Rd8 $11 {keeps the balance.}) 20. Bc2 {[%emt 0:08:03]} Rd8 {[%emt 0:04:44]} 21. Bb3 {[%emt 0:00:43]} Nc5 {[%emt 0:07:18]} 22. Qd4 {[%emt 0:09:36][%cal Rc3d5]} ({Much weaker is} 22. Bxd5 Bf5 23. Qd4 Bxb1 24. Rxb1 {[#]} Ra4 $1 25. Nxa4 Rxd5 26. Nxb6 Rxd4 27. Nxd4 Ne6 $17) (22. Nxd5 Nxd5 23. Bxd5 Bf5 $17) 22... Bf5 {[%emt 0:05:46]} 23. Bc2 {[%emt 0:02:35]} Bxc2 {[%emt 0:19:10]} 24. Rxc2 {[%emt 0:00:02]} Qd6 {[%emt 0:03:23]} 25. Qb4 {[%emt 0:09:22][%cal Oc3d5]} (25. Rd2 {feels hotter.} Rac8 26. h3 Ne6 27. Qf6) 25... Ne6 {[%emt 0:03:03]} 26. Qxd6 {[%emt 0:01:21]} Rxd6 {[%emt 0:00:01]} 27. Rd2 {[%emt 0:03:02]} Rad8 {[%emt 0:04:08]} 28. Rbd1 {[%emt 0:01:49][%cal Oc3e4]} R6d7 {[%emt 0:00:23]} 29. g3 {[%emt 0:03:55]} Kf8 {[%emt 0:00:44]} 30. Nf4 {[%emt 0:11:31]} Nxf4 {[%emt 0:01:15] The position is equal.} 31. gxf4 {[%emt 0:00:01]} Ke7 {[%emt 0:02:33]} 32. Kg2 {[%emt 0:00:31]} Ke6 {[%emt 0:01:13]} 33. Ne2 {[%emt 0:00:50]} Rc8 {[%emt 0:01:29]} 34. Nd4+ {[%emt 0:00:26]} Ke7 {[%emt 0:00:15]} 35. h4 {[%emt 0:03:04]} h5 {[%emt 0:03:54]} 36. Ra2 {[%emt 0:03:44]} Nc4 {[%emt 0:01:57]} 37. Nb3 {[%emt 0:03:02]} Ke6 {[%emt 0:03:59]} 38. Nd4+ {[%emt 0:00:15]} Kd6 {[%emt 0:02:02]} 39. Rc2 {[%emt 0:02:40]} Rdc7 {[%emt 0:05:29][%cal Oc4e3] Hoping for ...Nxe3+!} 40. Kg3 {[%emt 0:01:56]} f5 {[%emt 0:03:19]} 41. Kf3 {[%emt 0:09:24] [#] Black must now prevent Rg1.} Ke7 {[%emt 0:03:38]} 42. Rg1 {[%emt 0:04:47]} Kf7 {[%emt 0:00:59]} 43. Ra1 {[%emt 0:03:57]} Nd6 {[%emt 0:01:36]} 44. Rxc7+ {[%emt 0:00:45]} Rxc7 $11 {[%emt 0:00:01][%mdl 4096] Endgame KRN-KRN} 45. b6 {[%emt 0:06:14]} Rc4 {[%emt 0:05:15]} 46. Ra5 {[%emt 0:00:40]} Rb4 {[%emt 0:00:00]} 47. Rxd5 {[%emt 0:00:08]} Rxb6 {[%emt 0:00:00]} 48. Nb3 {[%emt 0:05:40]} Ne4 {[%emt 0:02:00]} 49. Nd2 {[%emt 0:01:18]} Nf6 {[%emt 0:00:45]} 50. Rd4 {[%emt 0:00:45]} Rb2 {[%emt 0:01:26]} 51. e4 {[%emt 0:02:19]} fxe4+ {[%emt 0:02:33]} 52. Nxe4 {[%emt 0:00:01]} Rb3+ {[%emt 0:00:25]} 53. Kg2 {[%emt 0:00:10]} Nxe4 {[%emt 0:01:05]} 54. Rxe4 {[%emt 0:00:01] KR-KR} Kf6 {[%emt 0:00:25]} 55. Re5 {[%emt 0:00:37]} b5 {[%emt 0:07:46][%cal Bb7b5,Bb5b4,Bb4b3,Bb3b2][%mdl 32]} 56. f3 {[%emt 0:00:39]} Rb1 {[%emt 0:02:05]} 57. Kg3 {[%emt 0:00:55]} b4 {[%emt 0:00:43]} 58. Rb5 {[%emt 0:00:36]} b3 {[%emt 0:00:33]} 59. f5 {[%emt 0:01:07]} gxf5 {[%emt 0:03:41]} 60. Kf4 {[%emt 0:00:06]} Ke6 {[%emt 0:01:33]} 61. Rxf5 {[%emt 0:00:45]} b2 {[%emt 0:03:23]} 62. Rb5 {[%emt 0:00:04]} Kf6 {[%emt 0:00:15]} 63. Rb6+ {[%emt 0:00:11]} Kf7 {[%emt 0:00:06]} 64. Kf5 {[%emt 0:00:18]} Rf1 {[%emt 0:00:07]} 65. Rb7+ {[%emt 0:00:17]} Kf8 {[%emt 0:00:06]} 66. Rxb2 {[%emt 0:00:04]} Rxf3+ {[%emt 0:00:05]} 67. Kg6 {[%emt 0:00:13]} Rg3+ {[%emt 0:00:07]} 68. Kxh5 {[%emt 0:00:20]} Kg7 {[%emt 0:00:55]} 69. Rb7+ {[%emt 0:00:01]} Kh8 {[%emt 0:02:58]} 70. Kh6 {[%emt 0:00:12]} Rg1 {[%emt 0:00:35]} 71. Rb5 {[%emt 0:01:28]} Rg7 {[%emt 0:00:26]} 72. Rb8+ {[%emt 0:00:29]} Rg8 {[%emt 0:00:05]} 73. Rb7 {[%emt 0:00:05][%csl Gh6][%cal Rb7h7]} Ra8 {[%emt 0:00:22]} 74. Rh7+ {[%emt 0:00:14]} Kg8 {[%emt 0:00:04] ( -> ...Ra6+)} 75. Rg7+ {[%emt 0:00:04]} Kh8 {[%emt 0:00:05]} 76. h5 {[%emt 0:00:18]} Ra6+ {[%emt 0:00:24]} 77. Rg6 {[%emt 0:00:02]} Ra7 {[%emt 0:00:10]} 78. Rf6 {[%emt 0:00:54][%cal Rf6f8]} Rh7+ {[%emt 0:00:07]} 79. Kg5 {[%emt 0:00:02]} Rg7+ {[%emt 0:00:07]} 80. Rg6 {[%emt 0:00:06]} Rxg6+ {[%emt 0:00:34]} 81. hxg6 {[%emt 0:00:04] White wants to mate with Kf6.} Kg7 {[%emt 0:00:06]} 82. Kf5 {[%emt 0:00:04]} Kg8 {[%emt 0:00:04]} 83. Kf6 {[%emt 0:00:05] g7 would kill now.} Kf8 {[%emt 0:00:03]} 84. g7+ {[%emt 0:00:03]} Kg8 {[%emt 0:00:06]} 85. Kg6 {[%emt 0:00:03] Weighted Error Value: White=0.05 (flawless) /Black=0.04 (flawless)} 1/2-1/2